[Event "*** Titled Tuesday Blitz"]
[Site "Chess.com"]
[Date "2020.04.14"]
[Round "1"]
[White "SahajGrover"]
[Black "ambaixador"]
[Result "0-1"]
[WhiteElo "2698"]
[BlackElo "2414"]
[TimeControl "180+1"]
[EndTime "10:07:53 PDT"]
[Termination "ambaixador won on time"]

1. d4 {[%clk 0:03:00.9]} 1... d5 {[%clk 0:02:59.6]} 2. Bf4 {[%clk 0:03:00.8]}
2... e6 {[%clk 0:02:56.5]} 3. e3 {[%clk 0:03:00.3]} 3... Bd6 {[%clk 0:02:56.2]}
4. Bg3 {[%clk 0:03:00]} 4... Ne7 {[%clk 0:02:55.8]} 5. Nd2 {[%clk 0:02:59.4]}
5... O-O {[%clk 0:02:55.8]} 6. Bd3 {[%clk 0:02:58.6]} 6... c5 {[%clk 0:02:55.6]}
7. c3 {[%clk 0:02:58.4]} 7... Nbc6 {[%clk 0:02:53.8]} 8. Ngf3 {[%clk 0:02:45.1]}
8... Ng6 {[%clk 0:02:46]} 9. Qe2 {[%clk 0:02:31.2]} 9... e5 {[%clk 0:02:43.8]}
10. Bxg6 {[%clk 0:02:28.9]} 10... hxg6 {[%clk 0:02:43.2]} 11. Nxe5 {[%clk
0:02:15.6]} 11... Re8 {[%clk 0:02:13.8]} 12. Ndf3 {[%clk 0:01:55.6]} 12... Bf8
{[%clk 0:02:01.6]} 13. O-O-O {[%clk 0:01:49.3]} 13... cxd4 {[%clk 0:01:52.4]}
14. Nxc6 {[%clk 0:01:41.1]} 14... bxc6 {[%clk 0:01:51.2]} 15. Nxd4 {[%clk
0:01:39.6]} 15... Qa5 {[%clk 0:01:44.1]} 16. Kb1 {[%clk 0:01:29.9]} 16... Qb6
{[%clk 0:01:37.2]} 17. Ka1 {[%clk 0:01:28.9]} 17... a5 {[%clk 0:01:36.9]} 18. h4
{[%clk 0:01:28]} 18... c5 {[%clk 0:01:33]} 19. Qb5 {[%clk 0:01:25.2]} 19... Qd8
{[%clk 0:01:24.7]} 20. Nb3 {[%clk 0:01:11.3]} 20... a4 {[%clk 0:01:06.8]} 21.
Nc1 {[%clk 0:00:48.9]} 21... a3 {[%clk 0:01:06.1]} 22. b3 {[%clk 0:00:48.7]}
22... Qf6 {[%clk 0:01:01.8]} 23. Qd3 {[%clk 0:00:31.9]} 23... Bf5 {[%clk
0:00:58.3]} 24. Qd2 {[%clk 0:00:32.2]} 24... d4 {[%clk 0:00:36.7]} 25. exd4
{[%clk 0:00:31.5]} 25... cxd4 {[%clk 0:00:36.8]} 26. Qxd4 {[%clk 0:00:32]} 26...
Qc6 {[%clk 0:00:34.5]} 27. Qc4 {[%clk 0:00:17]} 27... Qxg2 {[%clk 0:00:32]} 28.
h5 {[%clk 0:00:11]} 28... Rac8 {[%clk 0:00:30.2]} 29. Qd4 {[%clk 0:00:11.4]}
29... Bc5 {[%clk 0:00:24.1]} 30. Qd2 {[%clk 0:00:10.7]} 30... gxh5 {[%clk
0:00:21.3]} 31. Rxh5 {[%clk 0:00:11.6]} 31... Bg6 {[%clk 0:00:21.3]} 32. Rh4
{[%clk 0:00:11.2]} 32... Be7 {[%clk 0:00:19.8]} 33. Rh2 {[%clk 0:00:10.6]} 33...
Qf3 {[%clk 0:00:19.2]} 34. Rdh1 {[%clk 0:00:11.1]} 34... f6 {[%clk 0:00:14.9]}
35. c4 {[%clk 0:00:11.4]} 35... Bc5 {[%clk 0:00:13.6]} 36. Rh8+ {[%clk
0:00:02.6]} 36... Kf7 {[%clk 0:00:13.4]} 37. Rxe8 {[%clk 0:00:03.3]} 37... Rxe8
{[%clk 0:00:14.3]} 38. Rd1 {[%clk 0:00:02.7]} 38... Rd8 {[%clk 0:00:12.5]} 0-1

[Event "*** Titled Tuesday Blitz"]
[Site "Chess.com"]
[Date "2020.04.14"]
[Round "1"]
[White "ElliPaehtz"]
[Black "Belgrade"]
[Result "1-0"]
[WhiteElo "2534"]
[BlackElo "2055"]
[TimeControl "180+1"]
[EndTime "10:07:54 PDT"]
[Termination "ElliPaehtz won by resignation"]

1. d4 {[%clk 0:02:58.6]} 1... e6 {[%clk 0:01:56.7]} 2. Bf4 {[%clk 0:02:52.3]}
2... Nf6 {[%clk 0:01:53.5]} 3. e3 {[%clk 0:02:52.1]} 3... b6 {[%clk 0:01:53.8]}
4. Nf3 {[%clk 0:02:51.3]} 4... Bb7 {[%clk 0:01:54.3]} 5. Nbd2 {[%clk 0:02:49.9]}
5... Be7 {[%clk 0:01:52.7]} 6. Bd3 {[%clk 0:02:49]} 6... c5 {[%clk 0:01:53.1]}
7. c3 {[%clk 0:02:48.6]} 7... Nc6 {[%clk 0:01:53.7]} 8. h3 {[%clk 0:02:47.5]}
8... a6 {[%clk 0:01:53.2]} 9. O-O {[%clk 0:02:44.6]} 9... O-O {[%clk 0:01:52.8]}
10. Qe2 {[%clk 0:02:41.2]} 10... d6 {[%clk 0:01:51]} 11. Rfe1 {[%clk 0:02:36]}
11... Re8 {[%clk 0:01:48.1]} 12. Rad1 {[%clk 0:02:22.1]} 12... Qc7 {[%clk
0:01:42.4]} 13. Bh2 {[%clk 0:02:19.7]} 13... Bf8 {[%clk 0:01:42.1]} 14. a3
{[%clk 0:02:11.7]} 14... g6 {[%clk 0:01:33]} 15. Nc4 {[%clk 0:02:09.2]} 15... b5
{[%clk 0:01:23.3]} 16. Ncd2 {[%clk 0:02:04.8]} 16... c4 {[%clk 0:01:23.4]} 17.
Bb1 {[%clk 0:02:03.5]} 17... e5 {[%clk 0:01:22.5]} 18. dxe5 {[%clk 0:02:00.3]}
18... dxe5 {[%clk 0:01:17.2]} 19. Ne4 {[%clk 0:01:59.7]} 19... Be7 {[%clk
0:00:58.4]} 20. Nd4 {[%clk 0:01:39.2]} 20... Rad8 {[%clk 0:00:45.8]} 21. Nf3
{[%clk 0:01:28.6]} 21... Nd7 {[%clk 0:00:26.3]} 22. h4 {[%clk 0:01:23]} 22... h6
{[%clk 0:00:21.2]} 23. h5 {[%clk 0:01:20.8]} 23... Kg7 {[%clk 0:00:17.4]} 24.
hxg6 {[%clk 0:01:20]} 24... fxg6 {[%clk 0:00:18.3]} 25. Rd2 {[%clk 0:01:16.7]}
25... Nf8 {[%clk 0:00:17.9]} 26. Red1 {[%clk 0:01:16]} 26... Rxd2 {[%clk
0:00:18.5]} 27. Rxd2 {[%clk 0:01:14.7]} 27... Rd8 {[%clk 0:00:16.1]} 28. Rxd8
{[%clk 0:01:14.2]} 28... Bxd8 {[%clk 0:00:17]} 29. Nfd2 {[%clk 0:01:14.1]} 29...
Bc8 {[%clk 0:00:15.7]} 30. a4 {[%clk 0:01:12.4]} 30... Bf5 {[%clk 0:00:13.1]}
31. axb5 {[%clk 0:01:10]} 31... axb5 {[%clk 0:00:14]} 32. Ng3 {[%clk 0:01:09.3]}
32... Bxb1 {[%clk 0:00:13.1]} 33. Nxb1 {[%clk 0:01:09.2]} 33... Qd7 {[%clk
0:00:11.5]} 34. Ne4 {[%clk 0:01:07.4]} 34... Be7 {[%clk 0:00:11.1]} 35. Nbd2
{[%clk 0:01:06.6]} 35... Nh7 {[%clk 0:00:07.6]} 36. Bg3 {[%clk 0:01:06.4]} 36...
Ng5 {[%clk 0:00:07.2]} 37. Nxg5 {[%clk 0:01:05.5]} 37... Bxg5 {[%clk 0:00:07.7]}
38. Ne4 {[%clk 0:01:04.8]} 38... Be7 {[%clk 0:00:08.3]} 39. Qd2 {[%clk
0:01:04.6]} 39... Qxd2 {[%clk 0:00:07.8]} 40. Nxd2 {[%clk 0:01:04.6]} 40... Kf7
{[%clk 0:00:06.4]} 41. Kf1 {[%clk 0:01:04.2]} 41... Ke6 {[%clk 0:00:06.9]} 42.
Ke2 {[%clk 0:01:03.9]} 42... h5 {[%clk 0:00:07.4]} 43. Ne4 {[%clk 0:01:02.9]}
43... g5 {[%clk 0:00:07.1]} 44. f3 {[%clk 0:01:02.5]} 44... h4 {[%clk 0:00:07]}
45. Be1 {[%clk 0:01:00.8]} 45... Na5 {[%clk 0:00:07.5]} 46. Nf2 {[%clk
0:00:59.2]} 46... Nb3 {[%clk 0:00:07.8]} 47. Ng4 {[%clk 0:00:58.7]} 47... Nc1+
{[%clk 0:00:08]} 48. Kd1 {[%clk 0:00:51.2]} 48... Nd3 {[%clk 0:00:07.8]} 49. Bd2
{[%clk 0:00:48.8]} 49... Nc5 {[%clk 0:00:07]} 50. Kc2 {[%clk 0:00:48.2]} 50...
Na4 {[%clk 0:00:07.9]} 51. e4 {[%clk 0:00:47.8]} 51... Nc5 {[%clk 0:00:07.8]}
52. Ne3 {[%clk 0:00:47.1]} 52... Nd3 {[%clk 0:00:05.4]} 53. Nd5 {[%clk 0:00:47]}
53... Nf4 {[%clk 0:00:05.6]} 54. Bxf4 {[%clk 0:00:43.9]} 54... gxf4 {[%clk
0:00:05.7]} 55. Nc7+ {[%clk 0:00:43.3]} 55... Kd7 {[%clk 0:00:03.1]} 56. Nxb5
{[%clk 0:00:42]} 56... Bc5 {[%clk 0:00:03.7]} 57. b4 {[%clk 0:00:37.3]} 57...
cxb3+ {[%clk 0:00:03.1]} 58. Kxb3 {[%clk 0:00:37.1]} 58... Kc6 {[%clk
0:00:03.2]} 59. Kc4 {[%clk 0:00:36.8]} 1-0

[Event "*** Titled Tuesday Blitz"]
[Site "Chess.com"]
[Date "2020.04.14"]
[Round "1"]
[White "Promacherr"]
[Black "norwaytoadog"]
[Result "1-0"]
[WhiteElo "2609"]
[BlackElo "2249"]
[TimeControl "180+1"]
[EndTime "10:07:55 PDT"]
[Termination "Promacherr won on time"]

1. e4 {[%clk 0:02:59.6]} 1... e5 {[%clk 0:02:58.8]} 2. Nf3 {[%clk 0:02:59.4]}
2... Nc6 {[%clk 0:02:58.5]} 3. Bb5 {[%clk 0:02:59.4]} 3... a6 {[%clk 0:02:58.3]}
4. Ba4 {[%clk 0:02:59.5]} 4... Nf6 {[%clk 0:02:57.9]} 5. O-O {[%clk 0:02:59.5]}
5... Be7 {[%clk 0:02:58.2]} 6. Re1 {[%clk 0:02:59.6]} 6... b5 {[%clk 0:02:58.3]}
7. Bb3 {[%clk 0:03:00]} 7... d6 {[%clk 0:02:58.7]} 8. c3 {[%clk 0:03:00.1]} 8...
O-O {[%clk 0:02:58.2]} 9. h3 {[%clk 0:03:00.7]} 9... Bb7 {[%clk 0:02:58.3]} 10.
d3 {[%clk 0:03:00.1]} 10... h6 {[%clk 0:02:55.4]} 11. Nbd2 {[%clk 0:03:00.1]}
11... Re8 {[%clk 0:02:53.6]} 12. Nf1 {[%clk 0:03:00.2]} 12... Bf8 {[%clk
0:02:53.7]} 13. Ng3 {[%clk 0:03:00.3]} 13... g6 {[%clk 0:02:38]} 14. a4 {[%clk
0:02:56.7]} 14... Bg7 {[%clk 0:02:35.2]} 15. Bd2 {[%clk 0:02:35.5]} 15... Qd7
{[%clk 0:02:30.7]} 16. Qc1 {[%clk 0:02:28.4]} 16... Kh7 {[%clk 0:02:28.9]} 17.
Nh4 {[%clk 0:02:21]} 17... Ng8 {[%clk 0:02:00.5]} 18. Qd1 {[%clk 0:02:02.7]}
18... Rad8 {[%clk 0:01:53.6]} 19. axb5 {[%clk 0:02:01.2]} 19... axb5 {[%clk
0:01:53.3]} 20. Qf3 {[%clk 0:02:00.9]} 20... Rf8 {[%clk 0:01:48.4]} 21. Nhf5
{[%clk 0:01:36.7]} 21... gxf5 {[%clk 0:01:45.2]} 22. Nxf5 {[%clk 0:01:37.6]}
22... Nce7 {[%clk 0:01:35.5]} 23. Nxg7 {[%clk 0:01:24.4]} 23... Kxg7 {[%clk
0:01:32.9]} 24. Ra7 {[%clk 0:01:25.3]} 24... Bc6 {[%clk 0:01:27.6]} 25. d4
{[%clk 0:01:19.8]} 25... f5 {[%clk 0:01:24.1]} 26. d5 {[%clk 0:00:42]} 26... Ba8
{[%clk 0:01:11.2]} 27. exf5 {[%clk 0:00:40.8]} 27... Qxf5 {[%clk 0:01:06.6]} 28.
Qg3+ {[%clk 0:00:39.2]} 28... Qg6 {[%clk 0:01:06.3]} 29. Rxc7 {[%clk 0:00:32.5]}
29... Kh8 {[%clk 0:00:57.9]} 30. Qxg6 {[%clk 0:00:28.3]} 30... Nxg6 {[%clk
0:00:57.8]} 31. Bc2 {[%clk 0:00:29.2]} 31... N8e7 {[%clk 0:00:42.5]} 32. Bxh6
{[%clk 0:00:27]} 32... Rg8 {[%clk 0:00:31.3]} 33. Bg5 {[%clk 0:00:26.8]} 33...
Nxd5 {[%clk 0:00:27.7]} 34. Bxd8 {[%clk 0:00:20.3]} 34... Rxd8 {[%clk
0:00:22.6]} 35. Ra7 {[%clk 0:00:20.3]} 35... Bc6 {[%clk 0:00:21.2]} 36. g3
{[%clk 0:00:19.2]} 36... Nde7 {[%clk 0:00:15.4]} 37. Rd1 {[%clk 0:00:14.3]}
37... d5 {[%clk 0:00:14.4]} 38. Rc7 {[%clk 0:00:13.2]} 38... e4 {[%clk 0:00:14]}
39. Bxe4 {[%clk 0:00:13.3]} 39... Ra8 {[%clk 0:00:11.7]} 40. Bxg6 {[%clk
0:00:12.9]} 40... Nxg6 {[%clk 0:00:10.3]} 41. Rxc6 {[%clk 0:00:13.2]} 41... Ne5
{[%clk 0:00:10.1]} 42. Rc5 {[%clk 0:00:13.2]} 42... Nf3+ {[%clk 0:00:08.3]} 43.
Kg2 {[%clk 0:00:13.6]} 43... Rf8 {[%clk 0:00:08.1]} 44. Rdxd5 {[%clk 0:00:13]}
44... Ne1+ {[%clk 0:00:08.2]} 45. Kf1 {[%clk 0:00:12.4]} 45... Nf3 {[%clk
0:00:07.2]} 46. Rf5 {[%clk 0:00:12.8]} 46... Nh2+ {[%clk 0:00:05.9]} 47. Kg2
{[%clk 0:00:12.9]} 1-0

[Event "*** Titled Tuesday Blitz"]
[Site "Chess.com"]
[Date "2020.04.14"]
[Round "1"]
[White "indfraeng"]
[Black "nocnypako"]
[Result "1/2-1/2"]
[WhiteElo "2236"]
[BlackElo "2594"]
[TimeControl "180+1"]
[EndTime "10:07:55 PDT"]
[Termination "Game drawn by repetition"]

1. d4 {[%clk 0:02:58.8]} 1... Nf6 {[%clk 0:01:03.2]} 2. c4 {[%clk 0:02:56.5]}
2... g6 {[%clk 0:00:59.3]} 3. g3 {[%clk 0:02:54.7]} 3... c6 {[%clk 0:00:58.5]}
4. Bg2 {[%clk 0:02:47]} 4... d5 {[%clk 0:00:59.4]} 5. Nc3 {[%clk 0:02:41.6]}
5... Bg7 {[%clk 0:00:59.5]} 6. Nf3 {[%clk 0:02:24.6]} 6... O-O {[%clk
0:00:57.8]} 7. O-O {[%clk 0:02:23.4]} 7... dxc4 {[%clk 0:00:57.2]} 8. Ne5 {[%clk
0:02:07.3]} 8... Nfd7 {[%clk 0:00:57.1]} 9. Nxc4 {[%clk 0:02:04.8]} 9... Nb6
{[%clk 0:00:57.1]} 10. Nxb6 {[%clk 0:01:56.4]} 10... axb6 {[%clk 0:00:58]} 11.
e3 {[%clk 0:01:49.2]} 11... c5 {[%clk 0:00:52.7]} 12. d5 {[%clk 0:01:33.7]}
12... Na6 {[%clk 0:00:51.3]} 13. e4 {[%clk 0:01:31.2]} 13... Bd7 {[%clk
0:00:43.6]} 14. Be3 {[%clk 0:01:26.4]} 14... b5 {[%clk 0:00:43.4]} 15. Rc1
{[%clk 0:01:11.4]} 15... Qa5 {[%clk 0:00:37.7]} 16. a3 {[%clk 0:00:59]} 16... b4
{[%clk 0:00:37.2]} 17. axb4 {[%clk 0:00:53.8]} 17... cxb4 {[%clk 0:00:38.1]} 18.
Ra1 {[%clk 0:00:52.5]} 18... Qc7 {[%clk 0:00:32]} 19. Na4 {[%clk 0:00:49.5]}
19... b5 {[%clk 0:00:31.4]} 20. Nb6 {[%clk 0:00:46.9]} 20... Bxb2 {[%clk
0:00:26.8]} 21. Rb1 {[%clk 0:00:40.6]} 21... Bc3 {[%clk 0:00:22.1]} 22. Nxa8
{[%clk 0:00:39]} 22... Rxa8 {[%clk 0:00:23]} 23. Qe2 {[%clk 0:00:30.6]} 23...
Nc5 {[%clk 0:00:21.6]} 24. Rfc1 {[%clk 0:00:30.1]} 24... Na4 {[%clk 0:00:21.1]}
25. Rxb4 {[%clk 0:00:28.3]} 25... Qa5 {[%clk 0:00:16.5]} 26. Rb3 {[%clk
0:00:26.8]} 26... b4 {[%clk 0:00:16.8]} 27. Bd2 {[%clk 0:00:25.7]} 27... Bb5
{[%clk 0:00:16.4]} 28. Qe3 {[%clk 0:00:25]} 28... Bc4 {[%clk 0:00:10.5]} 29.
Rbb1 {[%clk 0:00:22.6]} 29... Ba2 {[%clk 0:00:08.6]} 30. Bxc3 {[%clk 0:00:21.5]}
30... Nxc3 {[%clk 0:00:06.4]} 31. Rxb4 {[%clk 0:00:20.3]} 31... Qxb4 {[%clk
0:00:06.2]} 32. Qxc3 {[%clk 0:00:20.8]} 32... Qxc3 {[%clk 0:00:06.5]} 33. Rxc3
{[%clk 0:00:21.7]} 33... Rb8 {[%clk 0:00:06.5]} 34. f4 {[%clk 0:00:21.7]} 34...
Kf8 {[%clk 0:00:05.1]} 35. h3 {[%clk 0:00:20.6]} 35... h6 {[%clk 0:00:04.8]} 36.
Kh2 {[%clk 0:00:21]} 36... Bb1 {[%clk 0:00:04.9]} 37. e5 {[%clk 0:00:21.1]}
37... Bf5 {[%clk 0:00:04.1]} 38. Rc7 {[%clk 0:00:21.4]} 38... Ke8 {[%clk
0:00:03.7]} 39. g4 {[%clk 0:00:21.4]} 39... Bd7 {[%clk 0:00:03.9]} 40. d6 {[%clk
0:00:20.4]} 40... exd6 {[%clk 0:00:03.6]} 41. exd6 {[%clk 0:00:21.3]} 41... Rb6
{[%clk 0:00:04]} 42. Ra7 {[%clk 0:00:20.3]} 42... Rxd6 {[%clk 0:00:04.2]} 43.
Ra8+ {[%clk 0:00:21.2]} 43... Ke7 {[%clk 0:00:04.7]} 44. Ra7 {[%clk 0:00:21.5]}
44... h5 {[%clk 0:00:04.1]} 45. gxh5 {[%clk 0:00:20.1]} 45... gxh5 {[%clk
0:00:05]} 46. Bf3 {[%clk 0:00:20.5]} 46... h4 {[%clk 0:00:04.8]} 47. Bg4 {[%clk
0:00:20.2]} 47... Ke8 {[%clk 0:00:03.9]} 48. Bxd7+ {[%clk 0:00:19.9]} 48... Rxd7
{[%clk 0:00:04.8]} 49. Rxd7 {[%clk 0:00:18.6]} 49... Kxd7 {[%clk 0:00:05.7]} 50.
Kg2 {[%clk 0:00:18.8]} 50... Ke6 {[%clk 0:00:05.9]} 51. Kf3 {[%clk 0:00:19.1]}
51... f5 {[%clk 0:00:06.2]} 52. Ke3 {[%clk 0:00:18.6]} 52... Kd5 {[%clk
0:00:06.5]} 53. Kd3 {[%clk 0:00:18.8]} 53... Kc5 {[%clk 0:00:07]} 54. Kc3 {[%clk
0:00:19]} 54... Kd5 {[%clk 0:00:07.2]} 55. Kd3 {[%clk 0:00:19.1]} 55... Kc5
{[%clk 0:00:07.6]} 56. Kc3 {[%clk 0:00:19.3]} 56... Kd5 {[%clk 0:00:08]} 57. Kd3
{[%clk 0:00:19.7]} 1/2-1/2

[Event "*** Titled Tuesday Blitz"]
[Site "Chess.com"]
[Date "2020.04.14"]
[Round "1"]
[White "OhanyanEminChess"]
[Black "Klavdia_Nik"]
[Result "1-0"]
[WhiteElo "2552"]
[BlackElo "2137"]
[TimeControl "180+1"]
[EndTime "10:07:58 PDT"]
[Termination "OhanyanEminChess won on time"]

1. e4 {[%clk 0:03:00.9]} 1... e5 {[%clk 0:02:57.6]} 2. Nf3 {[%clk 0:03:00.6]}
2... Nc6 {[%clk 0:02:58]} 3. Bc4 {[%clk 0:03:00.3]} 3... Be7 {[%clk 0:02:56.4]}
4. O-O {[%clk 0:02:59.5]} 4... Nf6 {[%clk 0:02:56.6]} 5. d4 {[%clk 0:02:59.5]}
5... d6 {[%clk 0:02:56.2]} 6. Re1 {[%clk 0:02:57.1]} 6... exd4 {[%clk
0:02:55.5]} 7. Nxd4 {[%clk 0:02:57]} 7... O-O {[%clk 0:02:56.1]} 8. Nc3 {[%clk
0:02:55.9]} 8... Bd7 {[%clk 0:02:54.4]} 9. Bb3 {[%clk 0:02:53.4]} 9... Na5
{[%clk 0:02:47.5]} 10. Nd5 {[%clk 0:02:51.8]} 10... Nxb3 {[%clk 0:02:45.9]} 11.
axb3 {[%clk 0:02:50.7]} 11... a6 {[%clk 0:02:39.7]} 12. Nxe7+ {[%clk 0:02:49.6]}
12... Qxe7 {[%clk 0:02:39.1]} 13. Qf3 {[%clk 0:02:45]} 13... Ng4 {[%clk
0:02:35.1]} 14. Qg3 {[%clk 0:02:38.2]} 14... Ne5 {[%clk 0:02:25.9]} 15. Bh6
{[%clk 0:02:33.4]} 15... Ng6 {[%clk 0:02:24.1]} 16. Bd2 {[%clk 0:02:29.9]} 16...
Rae8 {[%clk 0:02:22]} 17. Bc3 {[%clk 0:02:27.6]} 17... Qh4 {[%clk 0:02:21.4]}
18. Qxh4 {[%clk 0:02:26.8]} 18... Nxh4 {[%clk 0:02:21.5]} 19. f3 {[%clk
0:02:27.2]} 19... f5 {[%clk 0:02:17.3]} 20. exf5 {[%clk 0:02:26.3]} 20... Nxf5
{[%clk 0:02:17]} 21. Kf2 {[%clk 0:02:23.5]} 21... g6 {[%clk 0:02:14.3]} 22. Rac1
{[%clk 0:02:08.7]} 22... Nxd4 {[%clk 0:02:04.8]} 23. Bxd4 {[%clk 0:02:08.4]}
23... Rxe1 {[%clk 0:02:05.2]} 24. Rxe1 {[%clk 0:02:09.3]} 24... Re8 {[%clk
0:02:05.3]} 25. Be3 {[%clk 0:02:05.2]} 25... Kf7 {[%clk 0:02:04.7]} 26. Rd1
{[%clk 0:02:03.6]} 26... Bf5 {[%clk 0:02:02.9]} 27. b4 {[%clk 0:02:02.7]} 27...
b5 {[%clk 0:01:59.4]} 28. c3 {[%clk 0:02:02]} 28... Be6 {[%clk 0:01:55.2]} 29.
Ra1 {[%clk 0:02:01.6]} 29... Ra8 {[%clk 0:01:52.9]} 30. Kg3 {[%clk 0:02:00.4]}
30... Kf6 {[%clk 0:01:47.7]} 31. Bd4+ {[%clk 0:01:58]} 31... Kf5 {[%clk
0:01:47.7]} 32. Kh4 {[%clk 0:01:50.5]} 32... g5+ {[%clk 0:01:43.8]} 33. Kh5
{[%clk 0:01:43.8]} 33... Bf7+ {[%clk 0:01:40.3]} 34. Kh6 {[%clk 0:01:43.8]}
34... Bg6 {[%clk 0:01:40.6]} 35. Re1 {[%clk 0:01:21.9]} 35... a5 {[%clk
0:01:34.2]} 36. h3 {[%clk 0:01:00]} 36... Kf4 {[%clk 0:01:22.1]} 37. Re7 {[%clk
0:00:43.3]} 37... axb4 {[%clk 0:01:21.7]} 38. cxb4 {[%clk 0:00:44.2]} 38... Ra4
{[%clk 0:01:04.4]} 39. Rxc7 {[%clk 0:00:43.9]} 39... Rxb4 {[%clk 0:01:04.7]} 40.
Bc3 {[%clk 0:00:40.8]} 40... Rc4 {[%clk 0:01:02.7]} 41. Rd7 {[%clk 0:00:37.1]}
41... Rc6 {[%clk 0:00:51.1]} 42. Bb4 {[%clk 0:00:29.4]} 42... Kg3 {[%clk
0:00:47.7]} 43. Kxg5 {[%clk 0:00:29.6]} 43... Kxg2 {[%clk 0:00:46.8]} 44. f4
{[%clk 0:00:30.1]} 44... Be4 {[%clk 0:00:35.8]} 45. f5 {[%clk 0:00:14.5]} 45...
Kxh3 {[%clk 0:00:32.7]} 46. Rxh7+ {[%clk 0:00:14.6]} 46... Kg3 {[%clk
0:00:31.4]} 47. Rd7 {[%clk 0:00:14.9]} 47... d5 {[%clk 0:00:29.2]} 48. f6 {[%clk
0:00:15.4]} 48... Kf3 {[%clk 0:00:24.8]} 49. f7 {[%clk 0:00:11.3]} 49... Rg6+
{[%clk 0:00:24.5]} 50. Kh5 {[%clk 0:00:11.6]} 1-0

[Event "*** Titled Tuesday Blitz"]
[Site "Chess.com"]
[Date "2020.04.14"]
[Round "1"]
[White "adriangschnitzer"]
[Black "okriak"]
[Result "0-1"]
[WhiteElo "2395"]
[BlackElo "2755"]
[TimeControl "180+1"]
[EndTime "10:08:01 PDT"]
[Termination "okriak won by resignation"]

1. e4 {[%clk 0:02:57]} 1... e5 {[%clk 0:02:59.8]} 2. Nc3 {[%clk 0:02:55.7]} 2...
Nc6 {[%clk 0:03:00]} 3. Bc4 {[%clk 0:02:54.4]} 3... Nf6 {[%clk 0:02:59.1]} 4. d3
{[%clk 0:02:51.3]} 4... Na5 {[%clk 0:02:58.7]} 5. Nge2 {[%clk 0:02:50.8]} 5...
Be7 {[%clk 0:02:57.4]} 6. O-O {[%clk 0:02:50.1]} 6... O-O {[%clk 0:02:56.1]} 7.
a4 {[%clk 0:02:48.9]} 7... Nxc4 {[%clk 0:02:55.5]} 8. dxc4 {[%clk 0:02:49.8]}
8... d6 {[%clk 0:02:55.7]} 9. f3 {[%clk 0:02:47.9]} 9... c6 {[%clk 0:02:55.2]}
10. Be3 {[%clk 0:02:47.3]} 10... Qc7 {[%clk 0:02:54.7]} 11. Qd2 {[%clk 0:02:47]}
11... Be6 {[%clk 0:02:52.7]} 12. b3 {[%clk 0:02:46]} 12... Rfd8 {[%clk 0:02:52]}
13. Rfd1 {[%clk 0:02:45]} 13... d5 {[%clk 0:02:35.3]} 14. cxd5 {[%clk
0:02:43.3]} 14... cxd5 {[%clk 0:02:35.2]} 15. exd5 {[%clk 0:02:41.2]} 15... Nxd5
{[%clk 0:02:34.3]} 16. Nxd5 {[%clk 0:02:40.2]} 16... Rxd5 {[%clk 0:02:32.2]} 17.
Qc3 {[%clk 0:02:31.6]} 17... Rxd1+ {[%clk 0:02:23.1]} 18. Rxd1 {[%clk
0:02:29.4]} 18... Qxc3 {[%clk 0:02:23.2]} 19. Nxc3 {[%clk 0:02:30.3]} 19... Rc8
{[%clk 0:02:23]} 20. Nd5 {[%clk 0:02:20.3]} 20... Bxd5 {[%clk 0:02:02.1]} 21.
Rxd5 {[%clk 0:02:21.2]} 21... f6 {[%clk 0:02:01.8]} 22. c4 {[%clk 0:02:11.6]}
22... b6 {[%clk 0:01:48.8]} 23. Rd7 {[%clk 0:02:11.2]} 23... Bc5 {[%clk
0:01:48.5]} 24. Bxc5 {[%clk 0:02:07.7]} 24... bxc5 {[%clk 0:01:48.6]} 25. Rxa7
{[%clk 0:02:05.1]} 25... Rb8 {[%clk 0:01:48.4]} 26. Rc7 {[%clk 0:02:03.4]} 26...
Rxb3 {[%clk 0:01:47.7]} 27. Rxc5 {[%clk 0:02:03.3]} 27... Ra3 {[%clk 0:01:46.5]}
28. a5 {[%clk 0:02:02.2]} 28... Kf7 {[%clk 0:01:45.4]} 29. Rb5 {[%clk
0:01:50.6]} 29... h5 {[%clk 0:01:44]} 30. c5 {[%clk 0:01:49.5]} 30... Ke6 {[%clk
0:01:43.7]} 31. c6 {[%clk 0:01:30.1]} 31... Rc3 {[%clk 0:01:27.2]} 32. Rb6
{[%clk 0:01:16.1]} 32... Kd6 {[%clk 0:01:18]} 33. a6 {[%clk 0:01:05]} 33... Ra3
{[%clk 0:01:16.6]} 34. Rb7 {[%clk 0:00:57.3]} 34... Rxa6 {[%clk 0:01:09.5]} 35.
Rxg7 {[%clk 0:00:52.1]} 35... Rxc6 {[%clk 0:01:07.9]} 36. Rh7 {[%clk 0:00:50.6]}
36... Rc2 {[%clk 0:01:05.7]} 37. Rxh5 {[%clk 0:00:49]} 37... Ke6 {[%clk
0:01:06.1]} 38. h4 {[%clk 0:00:45.9]} 38... Kf7 {[%clk 0:01:06]} 39. Rh8 {[%clk
0:00:40]} 39... Kg7 {[%clk 0:01:05.8]} 40. Ra8 {[%clk 0:00:38.1]} 40... Rb2
{[%clk 0:01:04.7]} 41. Kh2 {[%clk 0:00:37.5]} 41... f5 {[%clk 0:01:04.4]} 42.
Ra6 {[%clk 0:00:34]} 42... Rc2 {[%clk 0:01:03.6]} 43. Kh3 {[%clk 0:00:27.8]}
43... f4 {[%clk 0:01:01.7]} 44. Re6 {[%clk 0:00:22]} 44... Re2 {[%clk
0:01:00.6]} 45. Kg4 {[%clk 0:00:06.4]} 45... Rxg2+ {[%clk 0:00:56.2]} 46. Kf5
{[%clk 0:00:06.5]} 46... Rh2 {[%clk 0:00:55.8]} 47. Rg6+ {[%clk 0:00:03.1]}
47... Kh7 {[%clk 0:00:53.3]} 48. Rg4 {[%clk 0:00:02.9]} 48... Re2 {[%clk
0:00:52.8]} 49. h5 {[%clk 0:00:02.6]} 49... Kh6 {[%clk 0:00:51.9]} 50. Kf6
{[%clk 0:00:01.4]} 50... Kxh5 {[%clk 0:00:48.9]} 51. Rg5+ {[%clk 0:00:01.8]}
51... Kh4 {[%clk 0:00:48.8]} 52. Rxe5 {[%clk 0:00:02.7]} 52... Re3 {[%clk
0:00:46.1]} 53. Kf5 {[%clk 0:00:02]} 53... Kg3 {[%clk 0:00:44.9]} 54. Re4 {[%clk
0:00:02.3]} 54... Rxf3 {[%clk 0:00:42.1]} 55. Ra4 {[%clk 0:00:01.9]} 55... Rf1
{[%clk 0:00:40.8]} 56. Ra3+ {[%clk 0:00:01.9]} 56... f3 {[%clk 0:00:40.8]} 57.
Ke4 {[%clk 0:00:02.1]} 57... Re1+ {[%clk 0:00:40.4]} 58. Kd3 {[%clk 0:00:02.2]}
58... f2 {[%clk 0:00:40.2]} 59. Kd2+ {[%clk 0:00:02.7]} 59... Kg2 {[%clk
0:00:40.3]} 0-1